[Event "Titled Tuesday Blitz January 17 Early 2023"]
[White "Trent, Lawrence"]
[Black "Rakhmanov, Aleksandr"]
[WhiteFideId "408638"]
[BlackFideId "4173708"]
[WhiteElo "2403"]
[BlackElo "2632"]
[Result "1-0"]
[Round "05"]
[TimeControl "180+2"]
[Date "2023.01.17"]
[WhiteClock "0:00:55"]
[BlackClock "0:00:10"]

1. e4 {[%clk 0:03:00]}  d5 {[%clk 0:02:48]} 2. exd5 {[%clk 0:02:59]}  Qxd5 {[%clk 0:02:49]} 3. Nc3 {[%clk 0:02:59]}  Qd8 {[%clk 0:02:50]} 4. d4 {[%clk 0:02:48]}  Nf6 {[%clk 0:02:50]} 5. Bc4 {[%clk 0:02:47]}  a6 {[%clk 0:02:41]} 6. a3 {[%clk 0:02:42]}  e6 {[%clk 0:02:37]} 7. Nf3 {[%clk 0:02:40]}  c5 {[%clk 0:02:37]} 8. O-O {[%clk 0:02:40]}  b5 {[%clk 0:02:34]} 9. Ba2 {[%clk 0:02:40]}  Bb7 {[%clk 0:02:29]} 10. Bg5 {[%clk 0:02:36]}  Be7 {[%clk 0:01:58]} 11. dxc5 {[%clk 0:02:28]}  Qxd1 {[%clk 0:01:51]} 12. Raxd1 {[%clk 0:02:27]}  Bxc5 {[%clk 0:01:50]} 13. Ne5 {[%clk 0:02:23]}  Nbd7 {[%clk 0:01:34]} 14. Nxd7 {[%clk 0:02:23]}  Nxd7 {[%clk 0:01:35]} 15. Rfe1 {[%clk 0:02:23]}  Nf6 {[%clk 0:01:23]} 16. Bxf6 {[%clk 0:02:00]}  gxf6 {[%clk 0:01:22]} 17. Bd5 {[%clk 0:01:55]}  O-O-O {[%clk 0:01:06]} 18. Bxb7+ {[%clk 0:01:54]}  Kxb7 {[%clk 0:01:07]} 19. g3 {[%clk 0:01:46]}  f5 {[%clk 0:00:49]} 20. Ne2 {[%clk 0:01:42]}  a5 {[%clk 0:00:40]} 21. Kf1 {[%clk 0:01:37]}  Kc6 {[%clk 0:00:39]} 22. Nf4 {[%clk 0:01:37]}  Bd4 {[%clk 0:00:33]} 23. c3 {[%clk 0:01:37]}  Bf6 {[%clk 0:00:31]} 24. Ng2 {[%clk 0:01:19]}  a4 {[%clk 0:00:21]} 25. Ne3 {[%clk 0:01:18]}  Kc5 {[%clk 0:00:22]} 26. Ke2 {[%clk 0:01:16]}  Bg5 {[%clk 0:00:20]} 27. f4 {[%clk 0:01:16]}  Bf6 {[%clk 0:00:20]} 28. Rxd8 {[%clk 0:01:13]}  Rxd8 {[%clk 0:00:21]} 29. Rd1 {[%clk 0:01:13]}  Rxd1 {[%clk 0:00:20]} 30. Kxd1 {[%clk 0:01:14]}  Bd8 {[%clk 0:00:18]} 31. Kc2 {[%clk 0:01:14]}  Bb6 {[%clk 0:00:18]} 32. Kd3 {[%clk 0:01:14]}  Kc6 {[%clk 0:00:17]} 33. Nc2 {[%clk 0:01:10]}  Bg1 {[%clk 0:00:16]} 34. Nd4+ {[%clk 0:01:06]}  Kc5 {[%clk 0:00:15]} 35. Nf3 {[%clk 0:01:07]}  Bf2 {[%clk 0:00:14]} 36. Ng5 {[%clk 0:01:07]}  Bg1 {[%clk 0:00:12]} 37. Nf3 {[%clk 0:00:58]}  Bf2 {[%clk 0:00:12]} 38. Ke2 {[%clk 0:00:57]}  Kc4 {[%clk 0:00:10]} 39. Kxf2 {[%clk 0:00:55]}  Kb3 {[%clk 0:00:08]} 40. Nd4+ {[%clk 0:00:55]}  Kxb2 {[%clk 0:00:09]} 41. Nxb5 {[%clk 0:00:56]}  Kb3 {[%clk 0:00:09]} 42. Ke3 {[%clk 0:00:54]}  Kc4 {[%clk 0:00:10]} 43. Nd6+ {[%clk 0:00:54]}  Kxc3 {[%clk 0:00:10]} 44. Nxf7 {[%clk 0:00:55]}  Kb3 {[%clk 0:00:10]} 45. Kd3 {[%clk 0:00:56]}  Kxa3 {[%clk 0:00:11]} 46. Kc2 {[%clk 0:00:56]}  Ka2 {[%clk 0:00:12]} 47. Ng5 {[%clk 0:00:56]}  a3 {[%clk 0:00:10]} 48. Nxe6 {[%clk 0:00:56]}  Ka1 {[%clk 0:00:10]} 49. Nd4 {[%clk 0:00:56]}  Ka2 {[%clk 0:00:10]} 50. Nxf5 {[%clk 0:00:55]}  h5 {[%clk 0:00:10]} 51. Nd4 {[%clk 0:00:54]}  h4 {[%clk 0:00:09]} 52. gxh4 {[%clk 0:00:54]}  Ka1 {[%clk 0:00:10]} 53. h5 {[%clk 0:00:55]}  a2 {[%clk 0:00:10]} 54. Nb3# {[%clk 0:00:55]} 1-0


[Site "https://www.chess.com"]

[Event "Titled Tuesday Blitz January 17 Early 2023"]
[White "Andreev, Eduard"]
[Black "Rustemov, Alexander"]
[WhiteFideId "14103400"]
[BlackFideId "4119002"]
[WhiteElo "2413"]
[BlackElo "2525"]
[Result "1/2-1/2"]
[Round "05"]
[TimeControl "180+2"]
[Date "2023.01.17"]
[WhiteClock "0:00:07"]
[BlackClock "0:00:06"]

1. e4 {[%clk 0:02:55]}  e6 {[%clk 0:03:00]} 2. d4 {[%clk 0:02:54]}  d5 {[%clk 0:03:00]} 3. Nd2 {[%clk 0:02:53]}  dxe4 {[%clk 0:03:01]} 4. Nxe4 {[%clk 0:02:53]}  Bd7 {[%clk 0:03:01]} 5. Nf3 {[%clk 0:02:53]}  Bc6 {[%clk 0:03:02]} 6. Bd3 {[%clk 0:02:54]}  Nd7 {[%clk 0:03:02]} 7. Qe2 {[%clk 0:02:52]}  Ngf6 {[%clk 0:03:03]} 8. Bg5 {[%clk 0:02:49]}  Be7 {[%clk 0:03:03]} 9. Bxf6 {[%clk 0:02:48]}  Nxf6 {[%clk 0:03:02]} 10. O-O-O {[%clk 0:02:48]}  Nxe4 {[%clk 0:03:02]} 11. Bxe4 {[%clk 0:02:49]}  Bxe4 {[%clk 0:03:03]} 12. Qxe4 {[%clk 0:02:50]}  Qd5 {[%clk 0:03:03]} 13. Qxd5 {[%clk 0:02:46]}  exd5 {[%clk 0:03:03]} 14. Rhe1 {[%clk 0:02:46]}  f6 {[%clk 0:03:02]} 15. Re2 {[%clk 0:02:37]}  Kf7 {[%clk 0:03:02]} 16. Nh4 {[%clk 0:02:35]}  g6 {[%clk 0:03:00]} 17. f4 {[%clk 0:02:30]}  Bd6 {[%clk 0:02:59]} 18. g3 {[%clk 0:02:30]}  Rhe8 {[%clk 0:02:58]} 19. Rde1 {[%clk 0:02:29]}  Rxe2 {[%clk 0:02:57]} 20. Rxe2 {[%clk 0:02:30]}  Re8 {[%clk 0:02:34]} 21. Rxe8 {[%clk 0:02:27]}  Kxe8 {[%clk 0:02:34]} 22. Kd2 {[%clk 0:02:28]}  Kf7 {[%clk 0:02:34]} 23. Ke3 {[%clk 0:02:27]}  Ke6 {[%clk 0:02:34]} 24. Kf3 {[%clk 0:02:04]}  b6 {[%clk 0:02:28]} 25. Ng2 {[%clk 0:02:03]}  f5 {[%clk 0:02:14]} 26. Ne3 {[%clk 0:02:00]}  c5 {[%clk 0:02:13]} 27. dxc5 {[%clk 0:01:58]}  Bxc5 {[%clk 0:02:11]} 28. b3 {[%clk 0:01:49]}  b5 {[%clk 0:02:07]} 29. c4 {[%clk 0:01:44]}  dxc4 {[%clk 0:02:05]} 30. bxc4 {[%clk 0:01:45]}  b4 {[%clk 0:02:06]} 31. Nd5 {[%clk 0:01:42]}  a5 {[%clk 0:02:03]} 32. h3 {[%clk 0:01:35]}  a4 {[%clk 0:02:02]} 33. Ke2 {[%clk 0:01:33]}  Kd6 {[%clk 0:01:52]} 34. g4 {[%clk 0:01:29]}  fxg4 {[%clk 0:01:51]} 35. hxg4 {[%clk 0:01:27]}  h5 {[%clk 0:01:52]} 36. gxh5 {[%clk 0:00:55]}  gxh5 {[%clk 0:01:52]} 37. Nf6 {[%clk 0:00:55]}  h4 {[%clk 0:01:50]} 38. Ne4+ {[%clk 0:00:53]}  Kc6 {[%clk 0:01:50]} 39. Nxc5 {[%clk 0:00:54]}  Kxc5 {[%clk 0:01:49]} 40. f5 {[%clk 0:00:54]}  h3 {[%clk 0:01:22]} 41. f6 {[%clk 0:00:54]}  Kd6 {[%clk 0:01:01]} 42. c5+ {[%clk 0:00:49]}  Ke6 {[%clk 0:00:59]} 43. c6 {[%clk 0:00:48]}  h2 {[%clk 0:00:56]} 44. c7 {[%clk 0:00:48]}  Kd7 {[%clk 0:00:55]} 45. f7 {[%clk 0:00:46]}  h1=Q {[%clk 0:00:55]} 46. f8=Q {[%clk 0:00:47]}  Qe4+ {[%clk 0:00:43]} 47. Kd2 {[%clk 0:00:39]}  Qd5+ {[%clk 0:00:27]} 48. Kc1 {[%clk 0:00:34]}  Qc4+ {[%clk 0:00:26]} 49. Kb1 {[%clk 0:00:30]}  Qd3+ {[%clk 0:00:26]} 50. Kc1 {[%clk 0:00:30]}  Qc3+ {[%clk 0:00:24]} 51. Kb1 {[%clk 0:00:29]}  Qe1+ {[%clk 0:00:24]} 52. Kc2 {[%clk 0:00:26]}  Qe2+ {[%clk 0:00:24]} 53. Kc1 {[%clk 0:00:19]}  Qc4+ {[%clk 0:00:22]} 54. Kb1 {[%clk 0:00:18]}  Kxc7 {[%clk 0:00:18]} 55. Qe7+ {[%clk 0:00:17]}  Kb6 {[%clk 0:00:19]} 56. Qd6+ {[%clk 0:00:17]}  Kb5 {[%clk 0:00:18]} 57. Qd7+ {[%clk 0:00:16]}  Qc6 {[%clk 0:00:18]} 58. Qd3+ {[%clk 0:00:15]}  Ka5 {[%clk 0:00:17]} 59. Qf5+ {[%clk 0:00:15]}  Qb5 {[%clk 0:00:16]} 60. Qf2 {[%clk 0:00:06]}  Qd3+ {[%clk 0:00:16]} 61. Kc1 {[%clk 0:00:07]}  Qc3+ {[%clk 0:00:16]} 62. Kb1 {[%clk 0:00:07]}  Qd3+ {[%clk 0:00:16]} 63. Kc1 {[%clk 0:00:07]}  Qd5 {[%clk 0:00:15]} 64. Qa7+ {[%clk 0:00:07]}  Kb5 {[%clk 0:00:16]} 65. Qb8+ {[%clk 0:00:05]}  Kc4 {[%clk 0:00:15]} 66. Qc7+ {[%clk 0:00:05]}  Qc5 {[%clk 0:00:16]} 67. Qg3 {[%clk 0:00:04]}  Kb5+ {[%clk 0:00:15]} 68. Kb1 {[%clk 0:00:05]}  a3 {[%clk 0:00:12]} 69. Qb8+ {[%clk 0:00:05]}  Qb6 {[%clk 0:00:13]} 70. Qg3 {[%clk 0:00:05]}  Qc6 {[%clk 0:00:12]} 71. Qd3+ {[%clk 0:00:05]}  Qc4 {[%clk 0:00:12]} 72. Qxc4+ {[%clk 0:00:05]}  Kxc4 {[%clk 0:00:12]} 73. Ka1 {[%clk 0:00:04]}  Kd3 {[%clk 0:00:10]} 74. Kb1 {[%clk 0:00:05]}  Kd2 {[%clk 0:00:07]} 75. Ka1 {[%clk 0:00:05]}  Kc3 {[%clk 0:00:07]} 76. Kb1 {[%clk 0:00:05]}  b3 {[%clk 0:00:06]} 77. axb3 {[%clk 0:00:06]}  Kxb3 {[%clk 0:00:06]} 78. Ka1 {[%clk 0:00:07]}  a2 {[%clk 0:00:06]} 1/2-1/2


[Site "https://www.chess.com"]

[Event "Titled Tuesday Blitz January 17 Early 2023"]
[White "Arjun, Kalyan"]
[Black "Hirneise, Jens"]
[WhiteFideId "35018701"]
[BlackFideId "24614734"]
[WhiteElo "2516"]
[BlackElo "2277"]
[Result "1-0"]
[Round "05"]
[TimeControl "180+2"]
[Date "2023.01.17"]
[WhiteClock "0:00:58"]
[BlackClock "0:00:03"]

1. e4 {[%clk 0:03:00]}  c5 {[%clk 0:02:26]} 2. Nf3 {[%clk 0:02:59]}  e6 {[%clk 0:02:26]} 3. d4 {[%clk 0:02:58]}  cxd4 {[%clk 0:02:27]} 4. Nxd4 {[%clk 0:02:59]}  Nf6 {[%clk 0:02:26]} 5. Nc3 {[%clk 0:02:59]}  Nc6 {[%clk 0:02:26]} 6. Nxc6 {[%clk 0:02:57]}  bxc6 {[%clk 0:02:26]} 7. e5 {[%clk 0:02:58]}  Nd5 {[%clk 0:02:26]} 8. Ne4 {[%clk 0:02:59]}  Qc7 {[%clk 0:02:19]} 9. f4 {[%clk 0:02:59]}  Qb6 {[%clk 0:02:10]} 10. c4 {[%clk 0:02:58]}  Ne3 {[%clk 0:01:56]} 11. Qd3 {[%clk 0:02:56]}  Nxf1 {[%clk 0:01:49]} 12. Rxf1 {[%clk 0:02:51]}  Be7 {[%clk 0:01:43]} 13. b3 {[%clk 0:02:41]}  a5 {[%clk 0:01:40]} 14. Be3 {[%clk 0:02:39]}  Qb4+ {[%clk 0:01:36]} 15. Bd2 {[%clk 0:02:29]}  Qb6 {[%clk 0:01:34]} 16. Nd6+ {[%clk 0:02:20]}  Bxd6 {[%clk 0:01:34]} 17. Qxd6 {[%clk 0:02:19]}  a4 {[%clk 0:01:23]} 18. Bb4 {[%clk 0:02:17]}  Qd8 {[%clk 0:01:22]} 19. Kd2 {[%clk 0:01:58]}  f5 {[%clk 0:01:16]} 20. g3 {[%clk 0:01:53]}  h5 {[%clk 0:01:11]} 21. h4 {[%clk 0:01:48]}  Kf7 {[%clk 0:01:10]} 22. Kc2 {[%clk 0:01:45]}  Rh6 {[%clk 0:01:04]} 23. Kb2 {[%clk 0:01:38]}  Rg6 {[%clk 0:01:02]} 24. Rf3 {[%clk 0:01:37]}  c5 {[%clk 0:00:57]} 25. Bxc5 {[%clk 0:01:34]}  Bb7 {[%clk 0:00:57]} 26. Rd3 {[%clk 0:01:33]}  Bc6 {[%clk 0:00:56]} 27. b4 {[%clk 0:01:26]}  a3+ {[%clk 0:00:50]} 28. Kc3 {[%clk 0:01:25]}  Be4 {[%clk 0:00:37]} 29. Re3 {[%clk 0:01:25]}  Qc8 {[%clk 0:00:32]} 30. Rd1 {[%clk 0:01:24]}  Kg8 {[%clk 0:00:29]} 31. Qxd7 {[%clk 0:01:21]}  Qa6 {[%clk 0:00:27]} 32. Rd6 {[%clk 0:01:19]}  Qa4 {[%clk 0:00:23]} 33. Qxa4 {[%clk 0:01:18]}  Rxa4 {[%clk 0:00:24]} 34. b5 {[%clk 0:01:18]}  Bb1 {[%clk 0:00:20]} 35. Kb3 {[%clk 0:01:15]}  Ra8 {[%clk 0:00:16]} 36. Bxa3 {[%clk 0:01:12]}  Be4 {[%clk 0:00:15]} 37. Bb4 {[%clk 0:01:10]}  Rg4 {[%clk 0:00:15]} 38. a4 {[%clk 0:01:09]}  g5 {[%clk 0:00:16]} 39. hxg5 {[%clk 0:01:08]}  h4 {[%clk 0:00:16]} 40. gxh4 {[%clk 0:01:07]}  Rg2 {[%clk 0:00:15]} 41. Bd2 {[%clk 0:01:03]}  Rh2 {[%clk 0:00:12]} 42. a5 {[%clk 0:01:02]}  Rxh4 {[%clk 0:00:12]} 43. a6 {[%clk 0:01:02]}  Rh1 {[%clk 0:00:12]} 44. Kb4 {[%clk 0:01:02]}  Rb1+ {[%clk 0:00:12]} 45. Rb3 {[%clk 0:01:02]}  Rd1 {[%clk 0:00:09]} 46. Be3 {[%clk 0:01:01]}  Re1 {[%clk 0:00:05]} 47. a7 {[%clk 0:01:01]}  Bc2 {[%clk 0:00:05]} 48. Ra3 {[%clk 0:01:00]}  Rb1+ {[%clk 0:00:04]} 49. Kc3 {[%clk 0:01:00]}  Be4 {[%clk 0:00:04]} 50. Rxe6 {[%clk 0:00:59]}  Re1 {[%clk 0:00:04]} 51. Kb4 {[%clk 0:00:59]}  Rb1+ {[%clk 0:00:04]} 52. Rb3 {[%clk 0:00:58]}  Ra1 {[%clk 0:00:03]} 53. b6 {[%clk 0:00:58]} 1-0


[Site "https://www.chess.com"]

[Event "Titled Tuesday Blitz January 17 Early 2023"]
[White "Boruchovsky, Avital"]
[Black "Harshavardhan G B"]
[WhiteFideId "2800055"]
[BlackFideId "25059009"]
[WhiteElo "2539"]
[BlackElo "2408"]
[Result "1-0"]
[Round "05"]
[TimeControl "180+2"]
[Date "2023.01.17"]
[WhiteClock "0:00:23"]
[BlackClock "0:00:01"]

1. Nf3 {[%clk 0:03:00]}  Nf6 {[%clk 0:02:58]} 2. g3 {[%clk 0:03:00]}  g6 {[%clk 0:02:57]} 3. Bg2 {[%clk 0:03:01]}  Bg7 {[%clk 0:02:57]} 4. O-O {[%clk 0:02:58]}  O-O {[%clk 0:02:56]} 5. c4 {[%clk 0:02:59]}  c6 {[%clk 0:02:55]} 6. a4 {[%clk 0:02:55]}  a5 {[%clk 0:02:52]} 7. d4 {[%clk 0:02:53]}  d6 {[%clk 0:02:41]} 8. Nc3 {[%clk 0:02:52]}  Nbd7 {[%clk 0:02:41]} 9. b3 {[%clk 0:02:47]}  e5 {[%clk 0:02:40]} 10. Ba3 {[%clk 0:02:46]}  c5 {[%clk 0:02:22]} 11. dxe5 {[%clk 0:02:31]}  dxe5 {[%clk 0:02:19]} 12. Nb5 {[%clk 0:02:24]}  e4 {[%clk 0:02:09]} 13. Nd2 {[%clk 0:02:19]}  e3 {[%clk 0:02:08]} 14. fxe3 {[%clk 0:02:17]}  Qe7 {[%clk 0:02:04]} 15. Bb2 {[%clk 0:02:08]}  Qxe3+ {[%clk 0:01:58]} 16. Kh1 {[%clk 0:02:07]}  Ne5 {[%clk 0:01:48]} 17. Nc7 {[%clk 0:01:54]}  Bg4 {[%clk 0:01:04]} 18. Nf3 {[%clk 0:01:53]}  Rad8 {[%clk 0:01:02]} 19. Qc1 {[%clk 0:01:51]}  Qxe2 {[%clk 0:00:29]} 20. Nxe5 {[%clk 0:01:46]}  Rd2 {[%clk 0:00:28]} 21. Qxd2 {[%clk 0:00:53]}  Qxd2 {[%clk 0:00:27]} 22. Nxg4 {[%clk 0:00:52]}  Nxg4 {[%clk 0:00:18]} 23. Bxg7 {[%clk 0:00:51]}  Kxg7 {[%clk 0:00:19]} 24. Nd5 {[%clk 0:00:50]}  Re8 {[%clk 0:00:16]} 25. h3 {[%clk 0:00:45]}  Re2 {[%clk 0:00:12]} 26. Nf4 {[%clk 0:00:38]}  Nf2+ {[%clk 0:00:06]} 27. Kg1 {[%clk 0:00:37]}  Nd3 {[%clk 0:00:05]} 28. Nxe2 {[%clk 0:00:36]}  Qxe2 {[%clk 0:00:06]} 29. Kh2 {[%clk 0:00:34]}  Qe5 {[%clk 0:00:06]} 30. Rad1 {[%clk 0:00:33]}  Nb4 {[%clk 0:00:04]} 31. Rd7 {[%clk 0:00:32]}  Kh6 {[%clk 0:00:03]} 32. Rdxf7 {[%clk 0:00:32]}  Nc2 {[%clk 0:00:02]} 33. R1f4 {[%clk 0:00:28]}  Ne3 {[%clk 0:00:02]} 34. Re4 {[%clk 0:00:23]}  Qg5 {[%clk 0:00:01]} 35. Rh4+ {[%clk 0:00:22]}  Qxh4 {[%clk 0:00:01]} 36. gxh4 {[%clk 0:00:23]} 1-0


[Site "https://www.chess.com"]

[Event "Titled Tuesday Blitz January 17 Early 2023"]
[White "Riehle, Marco"]
[Black "Kopczynski, Michal"]
[WhiteFideId "12904392"]
[BlackFideId "1124200"]
[WhiteElo "2368"]
[BlackElo "2225"]
[Result "0-1"]
[Round "05"]
[TimeControl "180+2"]
[Date "2023.01.17"]
[WhiteClock "0:00:38"]
[BlackClock "0:00:48"]

1. e4 {[%clk 0:02:49]}  c5 {[%clk 0:02:59]} 2. a3 {[%clk 0:02:49]}  d6 {[%clk 0:02:59]} 3. b4 {[%clk 0:02:48]}  cxb4 {[%clk 0:02:58]} 4. axb4 {[%clk 0:02:49]}  Nf6 {[%clk 0:02:58]} 5. Nc3 {[%clk 0:02:49]}  g6 {[%clk 0:02:57]} 6. d4 {[%clk 0:02:48]}  Bg7 {[%clk 0:02:58]} 7. f4 {[%clk 0:02:49]}  O-O {[%clk 0:02:58]} 8. Nf3 {[%clk 0:02:49]}  d5 {[%clk 0:02:51]} 9. e5 {[%clk 0:02:44]}  Ne4 {[%clk 0:02:50]} 10. Bb2 {[%clk 0:02:41]}  Bg4 {[%clk 0:02:43]} 11. Bd3 {[%clk 0:02:35]}  Nc6 {[%clk 0:02:38]} 12. Nxe4 {[%clk 0:02:33]}  dxe4 {[%clk 0:02:36]} 13. Bxe4 {[%clk 0:02:34]}  Nxb4 {[%clk 0:02:34]} 14. O-O {[%clk 0:02:26]}  Nd5 {[%clk 0:02:24]} 15. Qd2 {[%clk 0:02:19]}  Bh6 {[%clk 0:02:16]} 16. Ng5 {[%clk 0:02:04]}  f6 {[%clk 0:01:50]} 17. h3 {[%clk 0:01:28]}  Bc8 {[%clk 0:01:26]} 18. exf6 {[%clk 0:01:05]}  exf6 {[%clk 0:01:27]} 19. Ra5 {[%clk 0:00:57]}  Nxf4 {[%clk 0:01:16]} 20. Qxf4 {[%clk 0:00:51]}  Qxa5 {[%clk 0:01:10]} 21. Qd6 {[%clk 0:00:45]}  Qxg5 {[%clk 0:00:54]} 22. h4 {[%clk 0:00:39]}  Qe3+ {[%clk 0:00:52]} 23. Kh1 {[%clk 0:00:38]}  Qxe4 {[%clk 0:00:50]} 24. d5 {[%clk 0:00:39]}  Qxh4+ {[%clk 0:00:48]} 25. Qh2 {[%clk 0:00:38]} 0-1


[Site "https://www.chess.com"]

[Event "Titled Tuesday Blitz January 17 Early 2023"]
[White "Martin Duque, Jesus"]
[Black "Maksimovic, Bojan"]
[WhiteFideId "2208954"]
[BlackFideId "14408120"]
[WhiteElo "2386"]
[BlackElo "2486"]
[Result "1-0"]
[Round "05"]
[TimeControl "180+2"]
[Date "2023.01.17"]
[WhiteClock "0:01:12"]
[BlackClock "0:00:01"]

1. Nf3 {[%clk 0:03:00]}  Nf6 {[%clk 0:02:59]} 2. b3 {[%clk 0:03:01]}  g6 {[%clk 0:02:59]} 3. Bb2 {[%clk 0:03:02]}  Bg7 {[%clk 0:03:00]} 4. g3 {[%clk 0:03:03]}  d6 {[%clk 0:03:00]} 5. d4 {[%clk 0:03:03]}  c5 {[%clk 0:03:00]} 6. Bg2 {[%clk 0:03:01]}  Qa5+ {[%clk 0:02:59]} 7. Qd2 {[%clk 0:03:01]}  Qxd2+ {[%clk 0:02:59]} 8. Nbxd2 {[%clk 0:02:59]}  Na6 {[%clk 0:03:00]} 9. O-O-O {[%clk 0:02:55]}  O-O {[%clk 0:02:58]} 10. a3 {[%clk 0:02:52]}  Rb8 {[%clk 0:02:33]} 11. e4 {[%clk 0:02:51]}  cxd4 {[%clk 0:02:30]} 12. Nxd4 {[%clk 0:02:51]}  Bd7 {[%clk 0:02:22]} 13. Nc4 {[%clk 0:02:49]}  Rfc8 {[%clk 0:02:16]} 14. Kb1 {[%clk 0:02:45]}  b5 {[%clk 0:02:05]} 15. Ne3 {[%clk 0:02:45]}  Nc5 {[%clk 0:02:02]} 16. Nd5 {[%clk 0:02:41]}  Kf8 {[%clk 0:01:12]} 17. Rhe1 {[%clk 0:02:39]}  Ng4 {[%clk 0:01:08]} 18. f3 {[%clk 0:02:32]}  Ne5 {[%clk 0:01:08]} 19. h3 {[%clk 0:02:29]}  a5 {[%clk 0:01:03]} 20. f4 {[%clk 0:02:29]}  Nc6 {[%clk 0:01:03]} 21. Nxc6 {[%clk 0:02:25]}  Bxb2 {[%clk 0:00:34]} 22. Kxb2 {[%clk 0:02:25]}  Bxc6 {[%clk 0:00:33]} 23. h4 {[%clk 0:02:13]}  a4 {[%clk 0:00:32]} 24. Nb4 {[%clk 0:02:10]}  Ba8 {[%clk 0:00:28]} 25. Nd3 {[%clk 0:02:08]}  axb3 {[%clk 0:00:26]} 26. cxb3 {[%clk 0:02:07]}  Ne6 {[%clk 0:00:12]} 27. Nb4 {[%clk 0:02:06]}  Rc5 {[%clk 0:00:12]} 28. Rd2 {[%clk 0:02:03]}  Rbc8 {[%clk 0:00:12]} 29. Nd5 {[%clk 0:02:00]}  Bxd5 {[%clk 0:00:10]} 30. exd5 {[%clk 0:02:00]}  Nd4 {[%clk 0:00:11]} 31. Be4 {[%clk 0:01:56]}  Nf5 {[%clk 0:00:10]} 32. Bxf5 {[%clk 0:01:56]}  gxf5 {[%clk 0:00:11]} 33. Ree2 {[%clk 0:01:49]}  Rc1 {[%clk 0:00:06]} 34. Rc2 {[%clk 0:01:49]}  R8xc2+ {[%clk 0:00:06]} 35. Rxc2 {[%clk 0:01:49]}  Rd1 {[%clk 0:00:06]} 36. Rc8+ {[%clk 0:01:47]}  Kg7 {[%clk 0:00:06]} 37. a4 {[%clk 0:01:33]}  bxa4 {[%clk 0:00:06]} 38. bxa4 {[%clk 0:01:34]}  Rxd5 {[%clk 0:00:06]} 39. Kb3 {[%clk 0:01:33]}  Rd3+ {[%clk 0:00:06]} 40. Rc3 {[%clk 0:01:33]}  Rd5 {[%clk 0:00:03]} 41. Kb4 {[%clk 0:01:32]}  e5 {[%clk 0:00:03]} 42. a5 {[%clk 0:01:32]}  e4 {[%clk 0:00:02]} 43. a6 {[%clk 0:01:32]}  Rd4+ {[%clk 0:00:02]} 44. Kb5 {[%clk 0:01:26]}  Rd1 {[%clk 0:00:03]} 45. Rc4 {[%clk 0:01:26]}  Rb1+ {[%clk 0:00:02]} 46. Rb4 {[%clk 0:01:26]}  Rc1 {[%clk 0:00:03]} 47. a7 {[%clk 0:01:26]}  Rc8 {[%clk 0:00:03]} 48. Kb6 {[%clk 0:01:25]}  Ra8 {[%clk 0:00:03]} 49. Kb7 {[%clk 0:01:23]}  Rxa7+ {[%clk 0:00:04]} 50. Kxa7 {[%clk 0:01:24]}  Kg6 {[%clk 0:00:05]} 51. Kb6 {[%clk 0:01:22]}  Kh5 {[%clk 0:00:05]} 52. Kc6 {[%clk 0:01:21]}  Kg4 {[%clk 0:00:06]} 53. Rb3 {[%clk 0:01:21]}  Kh3 {[%clk 0:00:02]} 54. Kxd6 {[%clk 0:01:18]}  Kg2 {[%clk 0:00:03]} 55. Ke5 {[%clk 0:01:18]}  Kf2 {[%clk 0:00:03]} 56. Kxf5 {[%clk 0:01:18]}  e3 {[%clk 0:00:04]} 57. g4 {[%clk 0:01:16]}  e2 {[%clk 0:00:03]} 58. Rb1 {[%clk 0:01:16]}  e1=Q {[%clk 0:00:03]} 59. Rxe1 {[%clk 0:01:16]}  Kxe1 {[%clk 0:00:04]} 60. Kf6 {[%clk 0:01:13]}  h5 {[%clk 0:00:04]} 61. gxh5 {[%clk 0:01:12]}  Kf2 {[%clk 0:00:04]} 62. h6 {[%clk 0:01:13]}  Kg3 {[%clk 0:00:05]} 63. h7 {[%clk 0:01:13]}  Kg4 {[%clk 0:00:05]} 64. h8=Q {[%clk 0:01:13]}  Kf3 {[%clk 0:00:06]} 65. Qh5+ {[%clk 0:01:12]}  Ke4 {[%clk 0:00:06]} 66. Qg5 {[%clk 0:01:12]}  Kf3 {[%clk 0:00:06]} 67. h5 {[%clk 0:01:12]}  Ke4 {[%clk 0:00:07]} 68. h6 {[%clk 0:01:13]}  Kf3 {[%clk 0:00:08]} 69. h7 {[%clk 0:01:13]}  Ke4 {[%clk 0:00:08]} 70. h8=Q {[%clk 0:01:13]}  Kd4 {[%clk 0:00:09]} 71. Qe5+ {[%clk 0:01:12]}  Kd3 {[%clk 0:00:09]} 72. Qd8+ {[%clk 0:01:11]}  Kc4 {[%clk 0:00:09]} 73. Qec7+ {[%clk 0:01:11]}  Kb3 {[%clk 0:00:09]} 74. Qdb8+ {[%clk 0:01:11]}  Ka2 {[%clk 0:00:01]} 75. Qca7# {[%clk 0:01:12]} 1-0


[Site "https://www.chess.com"]

[Event "Titled Tuesday Blitz January 17 Early 2023"]
[White "marik_spb"]
[Black "Lortkipanidze, Nodar"]
[BlackFideId "13604058"]
[WhiteElo "2466"]
[BlackElo "2406"]
[Result "0-1"]
[Round "05"]
[TimeControl "180+2"]
[Date "2023.01.17"]
[WhiteClock "0:00:03"]
[BlackClock "0:00:37"]

1. d4 {[%clk 0:03:00]}  e6 {[%clk 0:02:57]} 2. c4 {[%clk 0:02:58]}  b6 {[%clk 0:02:58]} 3. Nf3 {[%clk 0:02:56]}  Bb7 {[%clk 0:02:58]} 4. g3 {[%clk 0:02:56]}  f5 {[%clk 0:02:58]} 5. Bg2 {[%clk 0:02:56]}  Nf6 {[%clk 0:02:59]} 6. O-O {[%clk 0:02:56]}  a5 {[%clk 0:02:59]} 7. Nc3 {[%clk 0:02:54]}  Bb4 {[%clk 0:02:59]} 8. Bg5 {[%clk 0:02:52]}  Bxc3 {[%clk 0:02:59]} 9. bxc3 {[%clk 0:02:52]}  O-O {[%clk 0:02:59]} 10. Nd2 {[%clk 0:02:49]}  Bxg2 {[%clk 0:02:59]} 11. Kxg2 {[%clk 0:02:50]}  Qe8 {[%clk 0:02:44]} 12. f3 {[%clk 0:02:46]}  e5 {[%clk 0:02:40]} 13. e4 {[%clk 0:02:39]}  Qg6 {[%clk 0:02:35]} 14. dxe5 {[%clk 0:02:22]}  Qxg5 {[%clk 0:02:27]} 15. f4 {[%clk 0:02:22]}  Qg6 {[%clk 0:02:17]} 16. exf6 {[%clk 0:02:05]}  Qxf6 {[%clk 0:02:17]} 17. e5 {[%clk 0:02:02]}  Qf7 {[%clk 0:02:13]} 18. Qf3 {[%clk 0:01:52]}  Na6 {[%clk 0:02:11]} 19. Rad1 {[%clk 0:01:48]}  a4 {[%clk 0:02:03]} 20. Qd5 {[%clk 0:01:42]}  Nc5 {[%clk 0:01:58]} 21. Nf3 {[%clk 0:01:39]}  a3 {[%clk 0:01:58]} 22. Ng5 {[%clk 0:01:37]}  Qxd5+ {[%clk 0:01:58]} 23. cxd5 {[%clk 0:01:38]}  Ra4 {[%clk 0:01:54]} 24. Rd4 {[%clk 0:01:22]}  Rfa8 {[%clk 0:01:41]} 25. Rb1 {[%clk 0:01:05]}  h6 {[%clk 0:01:31]} 26. Nf3 {[%clk 0:01:00]}  Ne4 {[%clk 0:01:30]} 27. Rb3 {[%clk 0:00:37]}  R4a5 {[%clk 0:01:26]} 28. d6 {[%clk 0:00:34]}  cxd6 {[%clk 0:01:23]} 29. exd6 {[%clk 0:00:25]}  Rc5 {[%clk 0:01:21]} 30. Ne5 {[%clk 0:00:22]}  Ra7 {[%clk 0:01:10]} 31. c4 {[%clk 0:00:20]}  g5 {[%clk 0:01:02]} 32. Rxb6 {[%clk 0:00:17]}  Kg7 {[%clk 0:01:00]} 33. Rb5 {[%clk 0:00:16]}  Rc8 {[%clk 0:00:54]} 34. g4 {[%clk 0:00:16]}  gxf4 {[%clk 0:00:52]} 35. gxf5 {[%clk 0:00:16]}  Nc3 {[%clk 0:00:52]} 36. Rb3 {[%clk 0:00:14]}  Nxa2 {[%clk 0:00:52]} 37. Rxf4 {[%clk 0:00:15]}  Kf6 {[%clk 0:00:52]} 38. Ng4+ {[%clk 0:00:14]}  Kg5 {[%clk 0:00:52]} 39. Rbf3 {[%clk 0:00:14]}  h5 {[%clk 0:00:52]} 40. Ne5 {[%clk 0:00:14]}  Kf6 {[%clk 0:00:52]} 41. Ng6 {[%clk 0:00:09]}  Nb4 {[%clk 0:00:50]} 42. Ne7 {[%clk 0:00:10]}  Rh8 {[%clk 0:00:48]} 43. c5 {[%clk 0:00:09]}  a2 {[%clk 0:00:47]} 44. Rf1 {[%clk 0:00:10]}  Nd3 {[%clk 0:00:46]} 45. Nd5+ {[%clk 0:00:09]}  Ke5 {[%clk 0:00:44]} 46. R4f3 {[%clk 0:00:09]}  Rg8+ {[%clk 0:00:42]} 47. Kh3 {[%clk 0:00:08]}  Ra3 {[%clk 0:00:41]} 48. Nb4 {[%clk 0:00:04]}  Nf2+ {[%clk 0:00:40]} 49. Rxf2 {[%clk 0:00:04]}  Rxf3+ {[%clk 0:00:40]} 50. Rxf3 {[%clk 0:00:04]}  a1=Q {[%clk 0:00:41]} 51. f6 {[%clk 0:00:04]}  Qg1 {[%clk 0:00:38]} 52. Nd3+ {[%clk 0:00:03]}  Ke4 {[%clk 0:00:37]} 53. Re3+ {[%clk 0:00:03]}  Qxe3+ {[%clk 0:00:37]} 0-1


[Site "https://www.chess.com"]